bitfinex-derivatives/quotes_SOLF0:USTF0_20250212
["timestamp","ask_amount","ask_price","bid_price","bid_amount"]
[1739380023408,22.71477355,194.77,194.76,22.10115704]
[1739380023612,5.1342,194.76,194.73,169.6690558]
[1739380023909,5.1342,194.76,194.75,77.24998678]
[1739380024101,5.1342,194.76,194.75,46.61748678]
[1739380024301,5.1342,194.76,194.75,37.95848678]
[1739380025101,0.03775603,194.77,194.75,37.95848678]
[1739380025307,0.03775603,194.77,194.74,0.033292]
[1739380026007,22.71477355,194.75,194.74,0.033292]
[1739380026210,5.1349,194.74,194.65,3.142]
[1739380026905,22.71477355,194.75,194.65,3.142]
[1739380027206,22.71477355,194.78,194.53,37.95848678]
[1739380027207,22.71477355,194.72,194.54,22.71477355]
[1739380027405,27.85097355,194.69,194.68,0.03361666]
[1739380027604,22.71477355,194.69,194.55,1.6347]
[1739380028103,27.85167355,194.66,194.58,5.1388]
[1739380028305,22.71477355,194.66,194.54,3.142]
[1739380028900,0.03446308,194.62,194.58,0.03945125]
[1739380030307,22.71477355,194.73,194.58,0.03945125]
[1739380030607,22.71477355,194.67,194.54,3.142]
[1739380030813,22.71477355,194.63,194.48,22.71477355]
[1739380031107,22.71477355,194.66,194.48,22.71477355]
[1739380031313,5.1384,194.61,194.54,5.14]
[1739380031609,22.71477355,194.72,194.55,0.0393956]
[1739380031809,5.1365,194.68,194.6,5.1383]
[1739380032012,5.1365,194.68,194.57,22.71477355]
[1739380032204,22.71477355,194.72,194.57,22.71477355]
[1739380032504,22.71477355,194.72,194.56,1.5113]
[1739380032505,22.71477355,194.72,194.6,5.1382]
[1739380032706,22.71477355,194.75,194.57,22.71477355]
[1739380033007,5.1369,194.66,194.64,0.03401469]
[1739380033201,0.03334098,194.68,194.64,0.03401469]
[1739380033505,22.71477355,194.66,194.48,22.71477355]
[1739380034308,5.1381,194.62,194.54,5.1398]
[1739380034508,5.1381,194.62,194.51,22.71477355]
[1739380034710,0.03872176,194.59,194.55,0.03572928]
[1739380034910,22.71477355,194.75,194.57,22.71477355]
[1739380035099,93.75193905,194.78,194.6,22.71477355]
[1739380035300,0.94407299,194.77,194.58,1.6085]
[1739380035509,22.71477355,194.72,194.58,1.6085]
[1739380036102,0.03303147,194.67,194.63,0.03634784]
[1739380036814,5.16983147,194.67,194.63,0.03634784]
[1739380037218,0.03303147,194.67,194.63,0.03634784]
[1739380037514,5.1373,194.65,194.63,0.03634784]
[1739380037708,0.03303147,194.67,194.63,0.03634784]
[1739380038110,5.1374,194.64,194.63,0.03634784]
[1739380038309,22.71477355,194.66,194.48,22.71477355]
[1739380038512,22.71477355,194.62,194.48,22.71477355]
[1739380038906,22.71477355,194.62,194.45,22.71477355]
[1739380039110,22.71477355,194.65,194.49,22.71477355]
[1739380039309,22.71477355,194.7,194.54,5.1399]
[1739380039513,22.71477355,194.7,194.41,4.7178]
[1739380039514,0.03901847,194.59,194.55,22.75118751]
[1739380039718,101.7,194.71,194.56,3.1535]
[1739380040013,5.1364,194.68,194.56,3.1535]
[1739380040917,22.71477355,194.7,194.56,3.1535]
[1739380041112,0.03406716,194.64,194.6,0.03298384]
[1739380041616,22.71477355,194.61,194.5,1.5643]
[1739380041807,0.03406716,194.64,194.5,4.7019]
[1739380042009,22.71477355,194.64,194.5,4.7019]
[1739380042619,22.71477355,194.64,194.53,5.1402]
[1739380042816,0.03855216,194.59,194.55,0.03659378]
[1739380043123,22.71477355,194.7,194.55,0.03659378]
[1739380043320,101.7,194.71,194.55,0.03659378]
[1739380043321,22.71477355,194.67,194.55,0.03659378]
[1739380043520,22.71477355,194.64,194.5,4.7019]
[1739380043917,22.71477355,194.61,194.5,4.7019]
[1739380044412,5.139,194.58,194.55,0.03782623]
[1739380045117,5.1395,194.56,194.55,0.03782623]
[1739380046222,5.141,194.51,194.41,1.6435]
[1739380046422,5.141,194.51,194.41,3.2533]
[1739380046919,22.71477355,194.54,194.41,3.2533]
[1739380046920,5.1412,194.5,194.44,5.1427]
[1739380047516,22.71477355,194.54,194.41,3.2533]
[1739380047517,5.18097133,194.49,194.45,0.03551078]
[1739380047713,0.03947133,194.49,194.45,0.03551078]
[1739380048721,22.71477355,194.48,194.45,0.03551078]
[1739380049224,22.71477355,194.48,194.34,3.1556]
[1739380049420,22.71477355,194.43,194.34,3.1556]
[1739380049623,37.17061865,194.44,194.34,3.1556]
[1739380049922,37.17061865,194.44,194.34,1.6029]
[1739380050423,0.0380249,194.41,194.37,0.03837164]
[1739380050924,5.1439,194.4,194.37,0.03837164]
[1739380051424,5.1456,194.33,194.28,1.6272]
[1739380051622,37.17061865,194.35,194.21,1.6559]
[1739380052116,37.17061865,194.31,194.21,1.6559]
[1739380052321,37.17061865,194.31,194.19,1.6272]
[1739380052322,37.17061865,194.25,194.11,1.575]
[1739380052520,37.20330316,194.28,194.24,0.03951856]
[1739380052720,0.03268451,194.28,194.24,0.03951856]
[1739380052922,37.17061865,194.34,194.22,5.1484]
[1739380053120,0.03902622,194.28,194.24,0.03450787]
[1739380053624,37.17061865,194.43,194.26,37.17061865]
[1739380053823,83.91437097,194.36,194.26,37.17061865]
[1739380054223,76.44227097,194.36,194.29,37.17061865]
[1739380054718,61.49837097,194.36,194.34,5.1453]
[1739380055121,54.19407097,194.36,194.34,5.1453]
[1739380055319,10.94357097,194.36,194.34,5.1453]
[1739380055722,1.961e-05,194.37,194.36,5.1448]
[1739380056024,137.57692951,194.46,194.36,182.0]
[1739380056319,137.57692951,194.46,194.45,5.1424]
[1739380057016,137.57692951,194.46,194.37,37.17061865]
[1739380057220,137.57692951,194.46,194.44,0.03659115]
[1739380057415,137.57692951,194.46,194.37,37.17061865]
[1739380057622,0.0342763,194.47,194.46,5.1421]
[1739380057820,0.0342763,194.47,194.43,0.03907304]
[1739380058725,0.0342763,194.47,194.44,5.1426]
[1739380058922,0.0342763,194.47,194.43,0.03907304]
[1739380059319,37.20489495,194.47,194.43,0.03907304]
[1739380059626,0.0342763,194.47,194.43,0.03907304]
[1739380059827,37.20489495,194.47,194.43,0.03907304]
[1739380060027,37.20489495,194.47,194.3,37.17061865]
[1739380060324,6.7155,194.46,194.39,5.1439]
[1739380060521,37.17061865,194.5,194.31,1.0292831]
[1739380060722,37.17061865,194.53,194.35,37.17061865]
[1739380060924,5.1409,194.51,194.43,5.1427]
[1739380061225,5.1409,194.51,194.35,37.17061865]
[1739380061419,0.03368904,194.49,194.45,0.03573614]
[1739380061619,5.1404,194.53,194.47,5.1418]
[1739380061821,37.17061865,194.56,194.41,37.17061865]
[1739380062025,0.03835137,194.49,194.45,0.03816164]
[1739380062226,0.03835137,194.49,194.45,5.18046164]
[1739380062423,0.03835137,194.49,194.45,0.03816164]
[1739380063727,0.03835137,194.49,194.48,5.1416]
[1739380066926,0.03835137,194.49,194.47,5.1418]
[1739380067324,0.03835137,194.49,194.45,0.03816164]
[1739380067821,0.03835137,194.49,194.45,5.18036164]
[1739380068020,0.03835137,194.49,194.45,0.03816164]
[1739380068424,37.17061865,194.47,194.45,0.03816164]
[1739380068626,3.1823,194.46,194.31,38.19990175]
[1739380068925,3.1823,194.46,194.32,4.28605271]
[1739380069125,5.1427,194.44,194.39,5.1439]
[1739380069637,3.1823,194.46,194.4,0.03857635]
[1739380069926,0.03374847,194.43,194.4,0.03857635]
[1739380070630,0.03374847,194.43,194.4,5.18207635]
[1739380070831,0.03374847,194.43,194.4,0.03857635]
[1739380072129,0.03374847,194.43,194.42,5.1432]
[1739380072536,1.6186,194.58,194.4,37.209195]
[1739380072728,37.17061865,194.56,194.4,37.17061865]
[1739380072923,37.17061865,194.56,194.37,37.17061865]
[1739380073228,5.1412,194.5,194.45,5.1424]
[1739380073726,5.1412,194.5,194.46,0.03419808]
[1739380073933,0.0387383,194.49,194.46,0.03419808]
[1739380075130,0.0387383,194.49,194.47,5.1418]
[1739380075334,0.0387383,194.49,194.46,0.03419808]
[1739380075736,0.0387383,194.49,194.48,5.1416]
[1739380075931,3.2395,194.58,194.46,37.20481673]
[1739380076131,121.91777135,194.63,194.46,37.20481673]
[1739380076336,121.91777135,194.63,194.46,37.17061865]
[1739380077127,0.03682283,194.56,194.53,0.03428048]
[1739380077325,84.7471527,194.63,194.53,0.03428048]
[1739380077637,0.03517692,194.56,194.54,5.14]
[1739380077834,121.91777135,194.63,194.53,0.03428048]
[1739380078035,0.03911017,194.57,194.53,0.03428048]
[1739380079332,37.20972882,194.57,194.53,0.03428048]
[1739380079536,3.0626,194.56,194.53,0.03428048]
[1739380080936,0.03911017,194.57,194.53,5.17448048]
[1739380081332,0.03911017,194.57,194.55,5.1397]
[1739380081838,0.03911017,194.57,194.53,0.03428048]
[1739380082234,0.03911017,194.57,194.56,5.1395]
[1739380082428,3.1424,194.67,194.54,22.83220712]
[1739380082634,3.1424,194.67,194.57,22.83220712]
[1739380082935,3.1424,194.67,194.54,22.83220712]
[1739380083131,25.97460712,194.67,194.51,22.83220712]
[1739380083337,3.1424,194.67,194.54,22.83220712]
[1739380083637,0.0362374,194.61,194.57,22.86653238]
[1739380083937,1.6386,194.71,194.6,22.83220712]
[1739380084138,84.7471527,194.72,194.63,22.83220712]
[1739380084439,84.7471527,194.72,194.66,22.83220712]
[1739380084832,120.1843746,194.78,194.71,22.83220712]
[1739380085032,8.68859178,194.78,194.77,27.96620712]
[1739380085228,8.68859178,194.78,194.77,31.20897391]
[1739380085434,9.178e-05,194.78,194.77,31.20897391]
[1739380085630,141.62205093,194.86,194.77,40.20055035]
[1739380085834,0.03251343,194.79,194.78,36.95778356]
[1739380086037,0.03251343,194.79,194.75,36.95778356]
[1739380086338,141.62205093,194.86,194.72,1.02711585]
[1739380086339,141.62205093,194.86,194.78,36.95778356]
[1739380086541,141.62205093,194.86,194.85,36.95778356]
[1739380086737,113.68045093,194.86,194.85,36.95778356]
[1739380086942,84.93405093,194.86,194.85,36.95778356]
[1739380087142,0.03672582,194.87,194.85,116.19077004]
[1739380087342,36.95778356,195.04,194.85,116.19077004]
[1739380087641,36.95778356,195.04,194.89,36.95778356]
[1739380087844,5.1275,195.02,194.86,36.95778356]
[1739380088441,36.95778356,195.04,194.86,36.95778356]
[1739380088637,42.08468356,195.04,195.03,651.3677562]
[1739380088837,36.95778356,195.04,195.03,651.3677562]
[1739380089033,36.95778356,195.04,195.03,463.47129969]
[1739380089238,36.95778356,195.04,195.03,453.37989969]
[1739380089544,36.95778356,195.04,195.03,344.34611778]
[1739380089841,36.95778356,195.04,195.03,314.32691778]
[1739380090045,36.95778356,195.04,195.03,74.03240572]
[1739380090238,36.95778356,195.04,195.03,71.54830572]
[1739380090543,36.95778356,195.04,195.03,54.21780572]
[1739380090745,5.16245686,195.05,195.03,54.21780572]
[1739380091941,0.03565686,195.05,195.03,54.21780572]
[1739380092336,24.45140395,195.07,195.03,54.21780572]
[1739380092535,148.00975299,195.08,195.03,54.21780572]
[1739380093142,5.1261,195.07,195.03,54.21780572]
[1739380093541,0.03824286,195.07,195.03,54.21780572]
[1739380093845,42.08448356,195.05,195.03,54.25594134]
[1739380094236,42.08448356,195.05,195.03,5.85894134]
[1739380094441,5.1269,195.04,195.03,4.134e-05]
[1739380094638,42.08468356,195.04,195.03,4.134e-05]
[1739380095135,5.1287,194.97,194.91,1.5177]
[1739380095343,5.1287,194.97,194.87,6.67484755]
[1739380095544,5.1287,194.97,194.84,1.6419]
[1739380095745,36.95778356,194.96,194.84,1.6419]
[1739380096242,36.95778356,194.96,194.85,1.5837]
[1739380096438,0.03736156,194.92,194.89,0.03257807]
[1739380097140,5.1305,194.9,194.89,0.03257807]
[1739380098141,36.95778356,194.9,194.74,3.1443]
[1739380098942,5.1325,194.83,194.74,3.1443]
[1739380099147,36.95778356,194.87,194.74,3.1443]
[1739380099343,0.03271977,194.8,194.77,0.03781214]
[1739380099543,5.1335,194.79,194.77,0.03781214]
[1739380099739,36.99050333,194.8,194.77,0.03781214]
[1739380100145,5.1337,194.78,194.77,0.03781214]
[1739380100443,36.99050333,194.8,194.64,3.1223]
[1739380100647,36.95778356,194.77,194.64,3.1223]
[1739380100847,5.1352,194.73,194.66,5.1368]
[1739380101049,5.1352,194.73,194.64,3.1223]
[1739380101050,36.95778356,194.8,194.64,3.1223]
[1739380101249,36.95778356,194.8,194.57,36.95778356]
[1739380101548,5.1374,194.64,194.57,5.1391]
[1739380102043,36.95778356,194.71,194.59,0.03945226]
[1739380102449,0.03253936,194.62,194.56,5.1394]
[1739380102641,0.03253936,194.62,194.57,36.95778356]
[1739380102850,36.95778356,194.69,194.63,0.03463303]
[1739380103049,36.95778356,194.72,194.63,0.03463303]
[1739380103350,36.95778356,194.75,194.6,36.95778356]
[1739380103850,101.62,194.8,194.54,4.6681]
[1739380103851,101.62,194.8,194.63,36.95778356]
[1739380104042,0.0330501,194.69,194.66,36.99630184]
[1739380104343,101.62,194.8,194.69,5.1361]
[1739380105350,101.62,194.8,194.67,3.0979]
[1739380105542,0.03718735,194.76,194.73,0.0355488]
[1739380105743,0.8688,194.89,194.73,0.0355488]
[1739380105949,5.1318,194.86,194.77,5.1339]
[1739380106251,101.64,194.95,194.75,36.95778356]
[1739380106449,5.1313,194.87,194.78,5.1337]
[1739380107053,0.03871376,194.84,194.81,0.03347031]
[1739380108050,0.03871376,194.84,194.82,5.1326]
[1739380108847,0.03871376,194.84,194.83,5.1324]
[1739380109350,0.03871376,194.84,194.81,0.03347031]
[1739380109949,5.1306,194.9,194.83,5.1324]
[1739380110147,5.1306,194.9,194.81,0.03347031]
[1739380110342,5.1306,194.9,194.78,36.95778356]
[1739380110754,5.1306,194.9,194.85,5.1318]
[1739380111253,0.03306619,194.89,194.86,0.03313677]
[1739380111549,0.03306619,194.89,194.88,5.1311]
[1739380113955,101.64,194.95,194.9,5.1304]
[1739380114151,36.95778356,195.02,194.87,36.95778356]
[1739380114351,36.95778356,195.02,194.84,36.95778356]
[1739380114554,36.95778356,194.99,194.84,36.95778356]
[1739380114753,36.95778356,194.99,194.82,3.1671]
[1739380114953,5.1296,194.94,194.87,5.1311]
[1739380115153,0.03571678,194.92,194.89,0.03722474]
[1739380115350,36.95778356,194.99,194.89,0.03722474]
[1739380115556,0.03605189,194.92,194.89,0.03722474]
[1739380115751,36.95778356,195.02,194.89,0.03722474]
[1739380116057,0.03485584,194.92,194.91,5.1303]
[1739380116252,0.903,195.03,194.94,0.03544109]
[1739380116453,0.03866093,194.93,194.87,36.95778356]
[1739380116758,36.95778356,195.05,194.87,36.95778356]
[1739380116952,0.03808433,194.92,194.88,0.03718022]
[1739380117154,36.95778356,194.99,194.84,36.95778356]
[1739380117352,0.038,194.92,194.89,5.1307]
[1739380117553,36.95778356,194.96,194.82,3.1671]
[1739380117757,0.03906187,194.92,194.89,0.03769902]
[1739380118850,5.1305,194.9,194.89,0.03769902]
[1739380120556,0.03906187,194.92,194.75,36.95778356]
[1739380120750,36.95778356,194.93,194.81,5.1328]
[1739380120947,36.95778356,194.87,194.75,3.1584]
[1739380121556,5.1332,194.81,194.79,0.03366986]
[1739380122058,0.03689012,194.83,194.79,0.03366986]
[1739380122454,5.16929012,194.83,194.79,0.03366986]
[1739380122659,0.03689012,194.83,194.79,0.03366986]
[1739380124858,5.1332,194.8,194.79,0.03366986]
[1739380125057,36.95778356,194.82,194.7,1.5233]
[1739380125356,36.95778356,194.82,194.67,3.1164]
[1739380125556,5.1339,194.78,194.72,5.1352]
[1739380125760,36.95778356,194.82,194.72,5.1352]
[1739380125957,5.1334,194.8,194.74,5.1346]
[1739380126260,0.03485027,194.79,194.75,0.03636534]
[1739380127054,0.03485027,194.79,194.75,5.17086534]
[1739380128162,5.1337,194.78,194.75,0.03636534]
[1739380130563,0.03485027,194.79,194.75,5.17056534]
[1739380130756,0.03485027,194.79,194.75,0.03636534]
[1739380130957,36.95778356,194.91,194.75,0.03636534]
[1739380131155,36.95778356,194.91,194.76,36.95778356]
[1739380131364,37.89388356,194.94,194.76,36.95778356]
[1739380132262,0.03296375,194.85,194.81,0.03491239]
[1739380132857,36.95778356,194.97,194.81,0.03491239]
[1739380133061,5.13,194.93,194.88,5.131]
[1739380133263,5.13,194.93,194.82,36.95778356]
[1739380133767,0.9709,195.01,194.85,36.95778356]
[1739380134065,0.03541959,194.95,194.91,0.03331491]
[1739380134267,0.03541959,194.95,194.85,36.95778356]
[1739380134268,36.95778356,195.03,194.85,36.95778356]
[1739380134466,0.0356093,194.95,194.91,0.03740634]
[1739380134868,36.95778356,195.03,194.88,36.95778356]
[1739380135062,0.03610887,194.95,194.94,5.1294]
[1739380135467,5.1281,195.0,194.94,5.1294]
[1739380135668,0.03633907,194.96,194.95,5.1292]
[1739380135968,5.1278,195.01,194.95,5.1292]
[1739380136164,0.03473147,194.97,194.94,0.03316502]
[1739380139865,138.59778356,195.06,194.94,0.03316502]
[1739380140265,5.1277,195.01,194.94,5.1293]
[1739380140669,37.92848356,195.12,194.94,36.95778356]
[1739380140969,5.1264,195.06,194.97,36.95778356]
[1739380141171,0.03771253,195.05,195.01,0.03522443]
[1739380141767,0.03771253,195.05,195.01,5.16272443]
[1739380141968,0.03771253,195.05,195.01,0.03522443]
[1739380142776,5.1274,195.02,195.01,0.03522443]
[1739380143777,36.95778356,195.03,194.92,1.6127]
[1739380144170,36.95778356,195.0,194.89,1.6371]
[1739380144371,36.95778356,194.97,194.85,5.1316]
[1739380144675,36.95778356,194.94,194.84,1.6201]
[1739380144978,0.03816768,194.91,194.87,0.03564789]
[1739380145676,5.16846768,194.91,194.87,0.03564789]
[1739380145974,36.99595124,194.91,194.87,0.03564789]
[1739380146183,36.99595124,194.91,194.77,3.1772]
[1739380146482,36.95778356,194.88,194.77,1.6201]
[1739380146883,36.95778356,194.85,194.73,1.4964]
[1739380147384,5.16879029,194.81,194.77,0.03533571]
[1739380147581,0.03579029,194.81,194.77,0.03533571]
[1739380147980,5.1336,194.79,194.77,0.03533571]
[1739380148182,5.1336,194.79,194.7,5.1356]
[1739380148679,5.1336,194.79,194.69,1.6201]
[1739380148886,5.1338,194.78,194.69,1.6201]
[1739380149080,36.95778356,194.79,194.64,36.95778356]
[1739380149281,36.95778356,194.79,194.72,0.03896899]
[1739380149481,0.03456614,194.75,194.72,0.03896899]
[1739380150186,0.9658,194.87,194.73,36.95778356]
[1739380150589,5.1315,194.87,194.73,36.95778356]
[1739380150782,36.95778356,194.94,194.76,36.95778356]
[1739380151082,5.1302,194.92,194.79,36.95778356]
[1739380151286,190.0,195.01,194.77,1.5443]
[1739380151287,36.95778356,194.97,194.82,36.95778356]
[1739380151487,0.03757673,194.87,194.83,0.03634979]
[1739380151789,37.92598356,195.0,194.82,36.95778356]
[1739380151987,0.03537758,194.87,194.83,1.54500513]
[1739380152186,36.95778356,194.94,194.83,1.5078]
[1739380152387,0.03679524,194.87,194.83,0.03813977]
[1739380152689,37.92598356,195.0,194.85,36.95778356]
[1739380152985,0.9682,195.0,194.85,36.95778356]
[1739380153181,0.9682,195.0,194.88,36.95778356]
[1739380153388,5.1276,195.02,194.88,36.95778356]
[1739380153585,36.95778356,195.06,194.89,1.6343]
[1739380153782,0.9681,195.07,194.92,0.03887361]
[1739380153988,0.03642833,194.99,194.92,0.03887361]
[1739380154187,0.03642833,194.99,194.91,36.95778356]
[1739380154386,0.03642833,194.99,194.95,5.1291]
[1739380154889,0.03642833,194.99,194.94,0.0351208]
[1739380155685,0.03642833,194.99,194.95,5.1291]
[1739380155881,0.03642833,194.99,194.94,0.0351208]
[1739380157493,0.03642833,194.99,194.95,5.1291]
[1739380158093,0.03642833,194.99,194.94,0.0351208]
[1739380158294,0.03642833,194.99,194.96,5.1288]
[1739380158595,0.03642833,194.99,194.94,0.0351208]
[1739380159096,0.03642833,194.99,194.94,5.1644208]
[1739380159694,0.03642833,194.99,194.94,0.0351208]
[1739380160198,0.03642833,194.99,194.94,5.1644208]
[1739380160593,0.03642833,194.99,194.94,0.0351208]
[1739380161800,5.16462833,194.99,194.95,5.1291]
[1739380162598,0.03642833,194.99,194.98,5.1284]
[1739380164297,36.95778356,195.1,194.94,36.99290436]
[1739380164505,5.1266,195.05,195.0,5.1277]
[1739380164705,36.95778356,195.07,194.91,38.53768356]
[1739380165198,5.1275,195.02,194.98,5.1283]
[1739380165501,0.03578897,195.02,194.98,0.03487734]
[1739380165695,0.03578897,195.02,195.01,5.1276]
[1739380165894,0.03578897,195.02,194.98,0.03487734]
[1739380166294,0.03578897,195.02,194.99,5.1279]
[1739380166502,0.03578897,195.02,194.98,0.03487734]
[1739380167001,0.03578897,195.02,194.99,5.1281]
[1739380167203,0.03578897,195.02,194.98,0.03487734]
[1739380167801,5.128,195.0,194.98,0.03487734]
[1739380168606,0.03578897,195.02,194.98,0.03487734]
[1739380168804,5.16328897,195.02,194.98,0.03487734]
[1739380169004,0.03578897,195.02,194.98,0.03487734]
[1739380169703,36.95778356,195.01,194.98,0.03487734]
[1739380170200,36.95778356,195.01,194.9,1.6442]
[1739380170399,5.1295,194.94,194.9,5.1304]
[1739380170805,5.1295,194.94,194.83,4.7363]
[1739380170806,5.1295,194.94,194.89,5.1307]
[1739380171400,0.03853759,194.93,194.9,0.03673287]
[1739380171597,0.03853759,194.93,194.9,5.16713287]
[1739380172505,0.03853759,194.93,194.9,0.03673287]
[1739380173005,5.16823759,194.93,194.9,0.03673287]
[1739380173207,0.03853759,194.93,194.9,0.03673287]
[1739380176607,22.74554896,195.05,194.9,0.03673287]
[1739380177005,22.74554896,195.05,194.89,22.74554896]
[1739380177310,5.1279,195.01,194.96,5.1288]
[1739380177811,0.03888495,195.0,194.97,0.03757965]
[1739380178011,0.03888495,195.0,194.89,22.74554896]
[1739380178310,0.03888495,195.0,194.97,0.03527007]
[1739380178508,5.1274,195.03,194.92,22.74554896]
[1739380178812,5.1274,195.03,194.97,0.03610684]
[1739380178813,0.03519748,195.0,194.97,0.03610684]
[1739380180413,5.1282,194.99,194.97,0.03610684]
[1739380180910,22.74554896,194.99,194.87,4.7924]
[1739380181112,22.74554896,194.96,194.87,4.7924]
[1739380181509,22.74554896,194.96,194.81,191.0]
[1739380181704,22.74554896,194.96,194.87,5.1313]
[1739380181705,5.1303,194.91,194.87,5.1313]
[1739380181908,22.74554896,194.96,194.82,4.9285]
[1739380182208,0.03592544,194.91,194.9,5.1305]
[1739380182612,0.03727206,194.92,194.89,0.03784432]
[1739380182906,22.74554896,194.96,194.82,4.9285]
[1739380183111,0.03944677,194.92,194.89,0.03377216]
[1739380183309,22.74554896,194.91,194.89,0.03377216]
[1739380183512,22.74554896,194.91,194.82,3.304]
[1739380183715,22.74554896,194.88,194.75,1.6245]
[1739380183912,5.1327,194.82,194.76,5.134]
[1739380184704,0.03725035,194.81,194.77,0.03700217]
[1739380184910,22.74554896,194.85,194.69,1.5831]
[1739380185106,0.03356295,194.81,194.77,0.0329356]
[1739380185809,5.1336,194.79,194.77,0.0329356]
[1739380186115,0.03356295,194.81,194.77,0.0329356]
[1739380186310,5.1332,194.8,194.77,0.0329356]
[1739380186513,37.02364877,194.78,194.69,1.5831]
[1739380186710,37.02364877,194.78,194.57,197.67484755]
[1739380186918,5.135,194.74,194.68,5.1362]
[1739380187213,37.02364877,194.78,194.61,1.6133]
[1739380187615,1.0924,194.8,194.61,1.6133]
[1739380187814,0.03462864,194.74,194.71,0.03906498]
[1739380190114,0.03462864,194.74,194.71,5.17456498]
[1739380190815,0.03462864,194.74,194.72,5.1351]
[1739380191015,0.03462864,194.74,194.71,0.03906498]
[1739380191016,37.02364877,194.84,194.71,0.03906498]
[1739380191206,38.11604877,194.87,194.71,37.02364877]
[1739380191412,38.11604877,194.87,194.72,1.6398]
[1739380192219,0.03418228,194.81,194.78,0.03869684]
[1739380194320,37.05783105,194.81,194.78,0.03869684]
[1739380195015,5.1334,194.79,194.78,0.03869684]
[1739380195413,5.1332,194.8,194.78,0.03869684]
[1739380195619,0.03418228,194.81,194.78,0.03869684]
[1739380195914,37.11784877,194.93,194.78,0.03869684]
[1739380196120,37.11784877,194.93,194.78,1.6236]
[1739380196820,37.02364877,194.9,194.78,1.6236]
[1739380197016,5.1316,194.86,194.84,0.03339671]
[1739380197521,0.0362545,194.87,194.84,0.03339671]
[1739380198016,101.56,194.94,194.84,0.03339671]
[1739380198320,37.52714877,194.99,194.84,0.03339671]
[1739380198321,37.02364877,194.99,194.84,0.03339671]
[1739380198521,37.02364877,194.99,194.84,1.6171]
[1739380198820,5.1287,194.98,194.86,37.02364877]
[1739380199221,0.0367672,194.94,194.93,5.1297]
[1739380200226,37.02364877,195.05,194.9,0.0381547]
[1739380200422,37.02364877,195.08,194.9,15.43]
[1739380200623,148.70296085,195.18,194.9,15.43]
[1739380200624,138.45646085,195.18,195.04,37.02364877]
[1739380200820,5.1237,195.17,195.09,5.1255]
[1739380201016,37.02364877,195.2,195.09,5.1255]
[1739380201318,1.0949,195.21,195.07,37.02364877]
[1739380201624,0.02921586,195.16,195.13,0.03705196]
[1739380209031,37.02364877,195.26,195.13,0.03705196]
[1739380209232,5.1224,195.21,195.1,37.02364877]
[1739380209626,5.1224,195.21,195.12,22.67747531]
[1739380210038,5.1224,195.21,195.14,5.1241]
[1739380210232,5.1224,195.21,195.15,0.03574291]
[1739380210631,5.1227,195.2,195.15,0.03574291]
[1739380210834,22.67747531,195.25,195.11,5.1248]
[1739380211033,22.67747531,195.25,195.16,0.03679377]
[1739380211234,22.67747531,195.22,195.16,0.03679377]
[1739380211841,5.1234,195.17,195.16,0.03679377]
[1739380213141,1.2719,195.27,195.16,0.03679377]
[1739380213641,5.1224,195.21,195.16,0.03679377]
[1739380214343,22.67747531,195.31,195.16,0.03679377]
[1739380214539,22.67747531,195.31,195.16,3.3023]
[1739380214838,22.67747531,195.31,195.22,0.03351206]
[1739380215742,22.67747531,195.34,195.22,0.03351206]
[1739380215943,22.67747531,195.34,195.18,22.67747531]
[1739380216143,22.67747531,195.34,195.26,0.03497395]
[1739380217244,22.67747531,195.31,195.26,0.03497395]
[1739380217845,5.1208,195.27,195.26,0.03497395]
[1739380218638,22.67747531,195.31,195.26,0.03497395]
[1739380218844,5.1205,195.29,195.26,0.03497395]
[1739380219042,22.67747531,195.31,195.26,0.03497395]
[1739380219244,22.67747531,195.28,195.17,1.6112]
[1739380219642,22.67747531,195.31,195.17,1.6112]
[1739380219845,5.1208,195.28,195.22,5.1219]
[1739380220244,22.67747531,195.34,195.17,24.28867531]
[1739380220452,0.03497394,195.27,195.23,0.03336076]
[1739380222253,5.1216,195.25,195.23,0.03336076]
[1739380222447,0.03497394,195.27,195.23,0.03336076]
[1739380222653,22.67747531,195.25,195.23,0.03336076]
[1739380222850,22.67747531,195.25,195.16,5.1237]
[1739380223049,22.67747531,195.25,195.1,1.7322]
[1739380223249,22.67747531,195.28,195.17,5.1232]
[1739380223455,22.67747531,195.28,195.12,22.67747531]
[1739380224054,0.03423898,195.22,195.18,0.03948865]
[1739380224448,22.67747531,195.34,195.18,22.71696396]
[1739380224751,22.67747531,195.37,195.21,22.67747531]
[1739380224955,22.67747531,195.37,195.22,1.5961]
[1739380225158,22.67747531,195.43,195.27,22.67747531]
[1739380225549,0.03409572,195.37,195.33,0.03367667]
[1739380226348,0.03409572,195.37,195.34,5.1188]